[Event "Early-Titled-Tuesday-Blitz-April-02-2024"]
[Site "Chess.com"]
[Date "2024.04.02"]
[Round "6"]
[White "A-Fier"]
[Black "TheBigBoss04"]
[Result "0-1"]
[WhiteElo "2892"]
[BlackElo "2753"]
[TimeControl "180+1"]
[EndTime "9:03:38 PDT"]
[Termination "TheBigBoss04 won by resignation"]

1. d4 {[%clk 0:03:00.9]} 1... Nf6 {[%clk 0:02:58.1]} 2. Bg5 {[%clk 0:03:01.5]}
2... c6 {[%clk 0:02:49.7]} 3. Bxf6 {[%clk 0:03:00.7]} 3... exf6 {[%clk
0:02:49.2]} 4. g3 {[%clk 0:03:01.5]} 4... Qb6 {[%clk 0:02:45.9]} 5. b3 {[%clk
0:02:58.7]} 5... h5 {[%clk 0:02:40.8]} 6. h4 {[%clk 0:02:58.6]} 6... d5 {[%clk
0:02:35.7]} 7. Bh3 {[%clk 0:02:58.6]} 7... Bxh3 {[%clk 0:02:26.6]} 8. Nxh3
{[%clk 0:02:59.5]} 8... Bb4+ {[%clk 0:02:23.1]} 9. c3 {[%clk 0:02:59.3]} 9...
Bd6 {[%clk 0:02:21.7]} 10. e3 {[%clk 0:02:59.9]} 10... Nd7 {[%clk 0:02:20.5]}
11. Nd2 {[%clk 0:03:00.5]} 11... f5 {[%clk 0:02:19.9]} 12. c4 {[%clk 0:03:00.9]}
12... Bb4 {[%clk 0:02:08]} 13. c5 {[%clk 0:03:01]} 13... Qd8 {[%clk 0:02:07.2]}
14. a3 {[%clk 0:03:01.4]} 14... Bxd2+ {[%clk 0:02:05.4]} 15. Qxd2 {[%clk
0:03:02.3]} 15... Nf6 {[%clk 0:02:05.4]} 16. Nf4 {[%clk 0:03:02.6]} 16... Ne4
{[%clk 0:01:59.3]} 17. Qc2 {[%clk 0:03:03]} 17... a5 {[%clk 0:01:52.7]} 18. Kf1
{[%clk 0:03:02.3]} 18... g6 {[%clk 0:01:51.6]} 19. Kg2 {[%clk 0:03:02.6]} 19...
Kf8 {[%clk 0:01:51.9]} 20. b4 {[%clk 0:03:03]} 20... Kg7 {[%clk 0:01:46.4]} 21.
Qb2 {[%clk 0:03:03]} 21... Qf6 {[%clk 0:01:35.9]} 22. b5 {[%clk 0:03:02.6]}
22... Nxc5 {[%clk 0:01:34]} 23. Rac1 {[%clk 0:02:57.9]} 23... Ne4 {[%clk
0:01:32.3]} 24. bxc6 {[%clk 0:02:54.6]} 24... bxc6 {[%clk 0:01:33.2]} 25. Qb6
{[%clk 0:02:53.7]} 25... Rhc8 {[%clk 0:01:29.8]} 26. Rc2 {[%clk 0:02:53.9]}
26... Qd6 {[%clk 0:01:20.3]} 27. Rhc1 {[%clk 0:02:49.1]} 27... Qxa3 {[%clk
0:01:12.4]} 28. Rxc6 {[%clk 0:02:49.1]} 28... Qxc1 {[%clk 0:01:11]} 29. Rxc1
{[%clk 0:02:49.1]} 29... Rxc1 {[%clk 0:01:11.6]} 30. Nxd5 {[%clk 0:02:45.2]}
30... Rc2 {[%clk 0:01:09.5]} 31. Qb7 {[%clk 0:02:29.3]} 31... Rac8 {[%clk
0:01:08.1]} 32. Kg1 {[%clk 0:02:07.1]} 32... Rc1+ {[%clk 0:01:07.2]} 33. Kg2
{[%clk 0:02:07.2]} 33... R8c2 {[%clk 0:01:07.6]} 0-1

[Event "Early-Titled-Tuesday-Blitz-April-02-2024"]
[Site "Chess.com"]
[Date "2024.04.02"]
[Round "6"]
[White "WindWhistler11"]
[Black "frequentblunders"]
[Result "1-0"]
[WhiteElo "2431"]
[BlackElo "2221"]
[TimeControl "180+1"]
[EndTime "9:03:39 PDT"]
[Termination "WindWhistler11 won by resignation"]

1. Nf3 {[%clk 0:02:54.8]} 1... e6 {[%clk 0:03:00.6]} 2. g3 {[%clk 0:02:55.5]}
2... c5 {[%clk 0:03:01.3]} 3. d3 {[%clk 0:02:56.2]} 3... d6 {[%clk 0:03:02.2]}
4. Nbd2 {[%clk 0:02:57]} 4... Nf6 {[%clk 0:03:02.7]} 5. e4 {[%clk 0:02:57.8]}
5... Be7 {[%clk 0:03:03.3]} 6. Bg2 {[%clk 0:02:58.6]} 6... Nc6 {[%clk
0:03:03.9]} 7. O-O {[%clk 0:02:59.4]} 7... b5 {[%clk 0:03:04.4]} 8. c3 {[%clk
0:03:00.1]} 8... O-O {[%clk 0:03:04.5]} 9. Re1 {[%clk 0:03:00.8]} 9... Rb8
{[%clk 0:03:04.2]} 10. d4 {[%clk 0:03:01.4]} 10... e5 {[%clk 0:02:57.7]} 11. d5
{[%clk 0:02:50.9]} 11... Na5 {[%clk 0:02:57.8]} 12. b4 {[%clk 0:02:47.4]} 12...
cxb4 {[%clk 0:02:55.6]} 13. cxb4 {[%clk 0:02:48.3]} 13... Nc4 {[%clk 0:02:52.5]}
14. Nb3 {[%clk 0:02:44.9]} 14... a5 {[%clk 0:02:28.1]} 15. bxa5 {[%clk 0:02:42]}
15... Nxa5 {[%clk 0:02:28.8]} 16. h3 {[%clk 0:02:35.1]} 16... b4 {[%clk
0:02:22.2]} 17. Nfd2 {[%clk 0:02:25.2]} 17... Ba6 {[%clk 0:02:17.8]} 18. Nxa5
{[%clk 0:02:16.7]} 18... Qxa5 {[%clk 0:02:18.7]} 19. Nb3 {[%clk 0:02:17.3]}
19... Qc7 {[%clk 0:01:58.1]} 20. Bd2 {[%clk 0:01:57.3]} 20... g6 {[%clk
0:01:44]} 21. Rc1 {[%clk 0:01:56.5]} 21... Qb7 {[%clk 0:01:32.3]} 22. Na5 {[%clk
0:01:54.6]} 22... Qb5 {[%clk 0:01:26.8]} 23. Nc6 {[%clk 0:01:53.3]} 23... Rb7
{[%clk 0:01:25.7]} 24. Bf1 {[%clk 0:01:51]} 24... Qb6 {[%clk 0:01:09.5]} 25. Be3
{[%clk 0:01:50.1]} 1-0

[Event "Early-Titled-Tuesday-Blitz-April-02-2024"]
[Site "Chess.com"]
[Date "2024.04.02"]
[Round "6"]
[White "Matibar"]
[Black "MasterKroket"]
[Result "1-0"]
[WhiteElo "2733"]
[BlackElo "2560"]
[TimeControl "180+1"]
[EndTime "9:03:44 PDT"]
[Termination "Matibar won by resignation"]

1. e4 {[%clk 0:03:00.9]} 1... e5 {[%clk 0:02:58.6]} 2. f4 {[%clk 0:02:58.8]}
2... exf4 {[%clk 0:02:58.1]} 3. Qf3 {[%clk 0:02:56.5]} 3... g5 {[%clk
0:02:48.6]} 4. h4 {[%clk 0:02:47.2]} 4... Nc6 {[%clk 0:02:40.3]} 5. c3 {[%clk
0:02:11.2]} 5... Ne5 {[%clk 0:02:24.2]} 6. Qe2 {[%clk 0:02:10.6]} 6... d6 {[%clk
0:02:18.7]} 7. d4 {[%clk 0:02:10.4]} 7... Bg4 {[%clk 0:02:09.1]} 8. Nf3 {[%clk
0:02:03.9]} 8... Nxf3+ {[%clk 0:02:02.4]} 9. gxf3 {[%clk 0:02:03.6]} 9... Bd7
{[%clk 0:02:02.2]} 10. hxg5 {[%clk 0:01:53.2]} 10... Qxg5 {[%clk 0:02:01.8]} 11.
Na3 {[%clk 0:01:46.4]} 11... O-O-O {[%clk 0:01:49.7]} 12. Bd2 {[%clk 0:01:46.2]}
12... d5 {[%clk 0:01:47.1]} 13. O-O-O {[%clk 0:01:42.3]} 13... Bxa3 {[%clk
0:01:46.3]} 14. bxa3 {[%clk 0:01:40.1]} 14... Nf6 {[%clk 0:01:32.8]} 15. e5
{[%clk 0:01:16.2]} 15... Nh5 {[%clk 0:01:31.6]} 16. Qh2 {[%clk 0:01:16.3]} 16...
Ng3 {[%clk 0:01:29]} 17. Qh4 {[%clk 0:01:08]} 17... Nxf1 {[%clk 0:01:17.8]} 1-0

[Event "Early-Titled-Tuesday-Blitz-April-02-2024"]
[Site "Chess.com"]
[Date "2024.04.02"]
[Round "6"]
[White "GrotBchess"]
[Black "Refrigerator1955"]
[Result "0-1"]
[WhiteElo "2436"]
[BlackElo "1987"]
[TimeControl "180+1"]
[EndTime "9:03:50 PDT"]
[Termination "Refrigerator1955 won by resignation"]

1. e4 {[%clk 0:03:00.9]} 1... c6 {[%clk 0:02:59.7]} 2. d4 {[%clk 0:02:58.7]}
2... d5 {[%clk 0:03:00]} 3. Nd2 {[%clk 0:02:58.8]} 3... dxe4 {[%clk 0:02:59.6]}
4. Nxe4 {[%clk 0:02:59.7]} 4... Nd7 {[%clk 0:02:59.2]} 5. Nf3 {[%clk 0:02:58.9]}
5... Ngf6 {[%clk 0:02:58.7]} 6. Ng3 {[%clk 0:02:59.1]} 6... e6 {[%clk
0:02:58.4]} 7. Bd3 {[%clk 0:02:59.5]} 7... Bd6 {[%clk 0:02:58]} 8. O-O {[%clk
0:03:00]} 8... Qc7 {[%clk 0:02:57.7]} 9. Re1 {[%clk 0:02:59.9]} 9... O-O {[%clk
0:02:57.1]} 10. c3 {[%clk 0:03:00.3]} 10... b6 {[%clk 0:02:56.2]} 11. Qe2 {[%clk
0:02:56.6]} 11... Bb7 {[%clk 0:02:55.2]} 12. Bg5 {[%clk 0:02:56.4]} 12... Ng4
{[%clk 0:02:54.5]} 13. Qe4 {[%clk 0:02:48.1]} 13... Ndf6 {[%clk 0:02:54]} 14.
Bxf6 {[%clk 0:02:43]} 14... Nxf6 {[%clk 0:02:53.2]} 15. Qh4 {[%clk 0:02:43.1]}
15... h6 {[%clk 0:02:49.6]} 16. Ne4 {[%clk 0:02:42.1]} 16... Be7 {[%clk
0:02:46.4]} 17. Nxf6+ {[%clk 0:02:38.7]} 17... Bxf6 {[%clk 0:02:45.6]} 18. Qe4
{[%clk 0:02:39]} 18... g6 {[%clk 0:02:45.1]} 19. Qe2 {[%clk 0:02:35.4]} 19... c5
{[%clk 0:02:43]} 20. dxc5 {[%clk 0:02:27.9]} 20... Qxc5 {[%clk 0:02:42]} 21. Be4
{[%clk 0:02:28.5]} 21... Bxe4 {[%clk 0:02:36.3]} 22. Qxe4 {[%clk 0:02:29.4]}
22... Rad8 {[%clk 0:02:30]} 23. h3 {[%clk 0:02:20]} 23... Kg7 {[%clk 0:02:28.2]}
24. Rad1 {[%clk 0:02:18.6]} 24... Rxd1 {[%clk 0:02:12.5]} 25. Rxd1 {[%clk
0:02:17.9]} 25... Rd8 {[%clk 0:02:12.7]} 26. Rxd8 {[%clk 0:02:16.3]} 26... Bxd8
{[%clk 0:02:12.3]} 27. Qb7 {[%clk 0:02:15.3]} 27... Qc7 {[%clk 0:02:10.5]} 28.
Qa8 {[%clk 0:02:12.9]} 28... Bf6 {[%clk 0:02:09.5]} 29. g3 {[%clk 0:02:10.7]}
29... a5 {[%clk 0:02:08.2]} 30. Kg2 {[%clk 0:02:09.3]} 30... h5 {[%clk
0:02:06.5]} 31. h4 {[%clk 0:02:08.8]} 31... Qc5 {[%clk 0:02:01]} 32. Qb7 {[%clk
0:01:59.9]} 32... a4 {[%clk 0:01:59]} 33. Nd2 {[%clk 0:01:53.2]} 33... a3 {[%clk
0:01:51.7]} 34. Ne4 {[%clk 0:01:49.8]} 34... Qd5 {[%clk 0:01:31.4]} 35. Qxd5
{[%clk 0:01:46.9]} 35... exd5 {[%clk 0:01:31.1]} 36. Nxf6 {[%clk 0:01:47.4]}
36... axb2 {[%clk 0:01:30.7]} 37. Ne8+ {[%clk 0:01:39.6]} 37... Kf8 {[%clk
0:01:29.7]} 38. Nc7 {[%clk 0:01:35.9]} 38... b1=Q {[%clk 0:01:28.6]} 39. Nxd5
{[%clk 0:01:36.8]} 39... Qxa2 {[%clk 0:01:28.3]} 0-1

[Event "Early-Titled-Tuesday-Blitz-April-02-2024"]
[Site "Chess.com"]
[Date "2024.04.02"]
[Round "6"]
[White "Heliosis11"]
[Black "vangulio"]
[Result "0-1"]
[WhiteElo "2375"]
[BlackElo "2551"]
[TimeControl "180+1"]
[EndTime "9:04:00 PDT"]
[Termination "vangulio won by resignation"]

1. e4 {[%clk 0:03:00.9]} 1... e5 {[%clk 0:02:53.7]} 2. Nf3 {[%clk 0:03:01.1]}
2... Nc6 {[%clk 0:02:53.7]} 3. Bb5 {[%clk 0:03:01.6]} 3... a6 {[%clk 0:02:53.7]}
4. Ba4 {[%clk 0:03:00.2]} 4... Nf6 {[%clk 0:02:53.4]} 5. O-O {[%clk 0:03:00.7]}
5... Nxe4 {[%clk 0:02:47.6]} 6. d4 {[%clk 0:02:59.3]} 6... b5 {[%clk 0:02:47.2]}
7. Bb3 {[%clk 0:02:59.4]} 7... d5 {[%clk 0:02:47.5]} 8. dxe5 {[%clk 0:03:00]}
8... Be6 {[%clk 0:02:47.8]} 9. c3 {[%clk 0:03:00]} 9... Bc5 {[%clk 0:02:41.3]}
10. Nbd2 {[%clk 0:02:58.3]} 10... O-O {[%clk 0:02:40.2]} 11. Bc2 {[%clk
0:02:57.5]} 11... f5 {[%clk 0:02:38.8]} 12. exf6 {[%clk 0:02:56.3]} 12... Nxf6
{[%clk 0:02:35.8]} 13. Nb3 {[%clk 0:02:56.4]} 13... Bb6 {[%clk 0:02:24.9]} 14.
Nfd4 {[%clk 0:02:56.7]} 14... Qd7 {[%clk 0:02:09.4]} 15. Nxc6 {[%clk 0:02:55.2]}
15... Qxc6 {[%clk 0:02:09]} 16. Nd4 {[%clk 0:02:55.9]} 16... Qd7 {[%clk
0:02:05.6]} 17. Nxe6 {[%clk 0:02:52.8]} 17... Qxe6 {[%clk 0:02:06.5]} 18. Bg5
{[%clk 0:02:42.9]} 18... Ng4 {[%clk 0:01:57.2]} 19. Bh4 {[%clk 0:02:40.3]} 19...
Rae8 {[%clk 0:01:27.2]} 20. Qd3 {[%clk 0:02:38.7]} 20... Qh6 {[%clk 0:01:11.7]}
21. Qxd5+ {[%clk 0:02:16.4]} 21... Kh8 {[%clk 0:01:10]} 22. Bg3 {[%clk
0:01:34.9]} 22... Rxf2 {[%clk 0:01:09]} 23. Rxf2 {[%clk 0:01:35.2]} 23... Bxf2+
{[%clk 0:01:08.1]} 24. Bxf2 {[%clk 0:01:36.1]} 24... Qxh2+ {[%clk 0:01:07.4]}
25. Kf1 {[%clk 0:01:28.9]} 25... Qh1+ {[%clk 0:01:04.5]} 26. Bg1 {[%clk
0:01:24]} 26... Ne3+ {[%clk 0:01:04.1]} 0-1

[Event "Early-Titled-Tuesday-Blitz-April-02-2024"]
[Site "Chess.com"]
[Date "2024.04.02"]
[Round "6"]
[White "Jospem"]
[Black "ilqar_74"]
[Result "1-0"]
[WhiteElo "3056"]
[BlackElo "2809"]
[TimeControl "180+1"]
[EndTime "9:04:08 PDT"]
[Termination "Jospem won by resignation"]

1. e4 {[%clk 0:03:00.3]} 1... c5 {[%clk 0:02:46.9]} 2. Nf3 {[%clk 0:02:58]} 2...
d6 {[%clk 0:02:47.2]} 3. c3 {[%clk 0:02:58.4]} 3... Nf6 {[%clk 0:02:45.8]} 4. h3
{[%clk 0:02:58.9]} 4... e6 {[%clk 0:02:45.8]} 5. Bd3 {[%clk 0:02:58.9]} 5... Be7
{[%clk 0:02:45.3]} 6. Bc2 {[%clk 0:02:59.4]} 6... Nc6 {[%clk 0:02:45]} 7. O-O
{[%clk 0:02:59.9]} 7... O-O {[%clk 0:02:42.8]} 8. Re1 {[%clk 0:03:00.3]} 8... a6
{[%clk 0:02:39.3]} 9. d4 {[%clk 0:03:00.4]} 9... cxd4 {[%clk 0:02:37.4]} 10.
cxd4 {[%clk 0:03:01.3]} 10... d5 {[%clk 0:02:38]} 11. e5 {[%clk 0:03:01.3]}
11... Ne4 {[%clk 0:02:38.6]} 12. Nbd2 {[%clk 0:03:01.8]} 12... Nxd2 {[%clk
0:02:38.2]} 13. Bxd2 {[%clk 0:03:02.7]} 13... b5 {[%clk 0:02:38.1]} 14. Qe2
{[%clk 0:03:01.2]} 14... Bb7 {[%clk 0:02:35.8]} 15. Qd3 {[%clk 0:03:01.2]} 15...
g6 {[%clk 0:02:32.8]} 16. a3 {[%clk 0:03:01.1]} 16... Rc8 {[%clk 0:02:32.3]} 17.
b4 {[%clk 0:02:45.9]} 17... Qb6 {[%clk 0:02:22.9]} 18. Rab1 {[%clk 0:02:36.1]}
18... Rc7 {[%clk 0:02:17.5]} 19. Rb2 {[%clk 0:02:21.4]} 19... Rfc8 {[%clk
0:02:16.4]} 20. Bb1 {[%clk 0:02:21.4]} 20... Ba8 {[%clk 0:01:56.6]} 21. Qe3
{[%clk 0:02:19.4]} 21... Bf8 {[%clk 0:01:52.1]} 22. h4 {[%clk 0:02:19.7]} 22...
h5 {[%clk 0:01:44.6]} 23. Qf4 {[%clk 0:02:19.5]} 23... a5 {[%clk 0:01:32.5]} 24.
g4 {[%clk 0:02:18.9]} 24... hxg4 {[%clk 0:01:27.6]} 25. Qxg4 {[%clk 0:02:18.4]}
25... axb4 {[%clk 0:01:18.2]} 26. axb4 {[%clk 0:02:19.3]} 26... Ne7 {[%clk
0:01:18]} 27. h5 {[%clk 0:02:19.5]} 27... Nf5 {[%clk 0:01:15.5]} 28. Bxf5 {[%clk
0:02:16]} 28... exf5 {[%clk 0:01:14.7]} 29. Qh4 {[%clk 0:02:16]} 29... Bg7
{[%clk 0:00:35.2]} 30. h6 {[%clk 0:02:15.9]} 30... Bf8 {[%clk 0:00:35.5]} 31.
Bg5 {[%clk 0:02:13.9]} 31... Kh7 {[%clk 0:00:19.3]} 32. Bf6 {[%clk 0:02:14.1]}
1-0

[Event "Early-Titled-Tuesday-Blitz-April-02-2024"]
[Site "Chess.com"]
[Date "2024.04.02"]
[Round "6"]
[White "profedechess93"]
[Black "savitha1030"]
[Result "1-0"]
[WhiteElo "2650"]
[BlackElo "2509"]
[TimeControl "180+1"]
[EndTime "9:04:12 PDT"]
[Termination "profedechess93 won by checkmate"]

1. e4 {[%clk 0:03:00.9]} 1... c5 {[%clk 0:02:50.6]} 2. Nf3 {[%clk 0:03:00.5]}
2... e6 {[%clk 0:02:50.9]} 3. d4 {[%clk 0:03:00.5]} 3... cxd4 {[%clk 0:02:51.8]}
4. Nxd4 {[%clk 0:03:01.4]} 4... a6 {[%clk 0:02:52.7]} 5. Nc3 {[%clk 0:03:01.8]}
5... Qc7 {[%clk 0:02:50.5]} 6. Be2 {[%clk 0:03:01.7]} 6... b5 {[%clk 0:02:47.9]}
7. Bf3 {[%clk 0:03:01.2]} 7... Bb7 {[%clk 0:02:47.5]} 8. O-O {[%clk 0:03:01.4]}
8... Nf6 {[%clk 0:02:43.3]} 9. e5 {[%clk 0:03:00.4]} 9... Ng8 {[%clk 0:02:38.5]}
10. Re1 {[%clk 0:02:57.5]} 10... Bc5 {[%clk 0:02:34.9]} 11. Be3 {[%clk
0:02:27.1]} 11... Bxd4 {[%clk 0:02:16.3]} 12. Bxd4 {[%clk 0:02:01.1]} 12... Ne7
{[%clk 0:02:06.9]} 13. Bxb7 {[%clk 0:01:59.5]} 13... Qxb7 {[%clk 0:02:07.8]} 14.
Bc5 {[%clk 0:01:59.9]} 14... Nbc6 {[%clk 0:02:05.2]} 15. Ne4 {[%clk 0:01:52.8]}
15... O-O {[%clk 0:01:57]} 16. Qh5 {[%clk 0:01:45.4]} 16... Rfc8 {[%clk
0:01:22.8]} 17. Nd6 {[%clk 0:01:43]} 17... g6 {[%clk 0:01:11.3]} 18. Qf3 {[%clk
0:01:34.1]} 18... Qc7 {[%clk 0:00:51.4]} 19. Qxf7+ {[%clk 0:01:28.4]} 19... Kh8
{[%clk 0:00:51.7]} 20. Nxc8 {[%clk 0:01:21.4]} 20... Nxc8 {[%clk 0:00:51.6]} 21.
Qf8# {[%clk 0:01:20.7]} 1-0

[Event "Early-Titled-Tuesday-Blitz-April-02-2024"]
[Site "Chess.com"]
[Date "2024.04.02"]
[Round "6"]
[White "ViIIagra"]
[Black "MagnusCarlsen"]
[Result "0-1"]
[WhiteElo "2905"]
[BlackElo "3233"]
[TimeControl "180+1"]
[EndTime "9:04:16 PDT"]
[Termination "MagnusCarlsen won by resignation"]

1. g3 {[%clk 0:03:00.9]} 1... h5 {[%clk 0:02:54.6]} 2. Nf3 {[%clk 0:03:00.1]}
2... h4 {[%clk 0:02:53.9]} 3. Nxh4 {[%clk 0:03:00.3]} 3... e5 {[%clk 0:02:53.9]}
4. d4 {[%clk 0:02:58.8]} 4... exd4 {[%clk 0:02:48.4]} 5. c3 {[%clk 0:02:59.2]}
5... d5 {[%clk 0:02:45.7]} 6. cxd4 {[%clk 0:02:52.7]} 6... Rxh4 {[%clk
0:02:43.6]} 7. gxh4 {[%clk 0:02:52.7]} 7... Qxh4 {[%clk 0:02:44.5]} 8. Qd3
{[%clk 0:01:25]} 8... Nc6 {[%clk 0:02:43.1]} 9. Nc3 {[%clk 0:01:20.2]} 9... Nf6
{[%clk 0:02:38.1]} 10. Be3 {[%clk 0:00:57]} 10... Nb4 {[%clk 0:02:31]} 11. Qd2
{[%clk 0:00:54.8]} 11... Bf5 {[%clk 0:02:30.7]} 12. Rc1 {[%clk 0:00:50.3]} 12...
Ne4 {[%clk 0:02:27.1]} 13. Qd1 {[%clk 0:00:43.1]} 13... O-O-O {[%clk 0:02:26.9]}
14. Qb3 {[%clk 0:00:40.3]} 14... Nc6 {[%clk 0:02:15.6]} 15. Bg2 {[%clk
0:00:39.7]} 15... Bb4 {[%clk 0:02:13.5]} 16. a3 {[%clk 0:00:37.3]} 16... Bxc3+
{[%clk 0:02:12.3]} 17. bxc3 {[%clk 0:00:37.4]} 17... Na5 {[%clk 0:02:12.4]} 18.
Qa4 {[%clk 0:00:24.1]} 18... Nc4 {[%clk 0:02:11]} 19. Bxe4 {[%clk 0:00:14.4]}
19... Bxe4 {[%clk 0:02:10.2]} 20. Rg1 {[%clk 0:00:14.9]} 20... Nxe3 {[%clk
0:02:09.7]} 21. Qxa7 {[%clk 0:00:15.2]} 21... Ng2+ {[%clk 0:02:04.1]} 22. Rxg2
{[%clk 0:00:11.3]} 22... Bxg2 {[%clk 0:02:03.4]} 23. Qa8+ {[%clk 0:00:09.7]}
23... Kd7 {[%clk 0:02:03.6]} 24. Qxb7 {[%clk 0:00:10.6]} 24... Qxh2 {[%clk
0:02:03.7]} 0-1

[Event "Early-Titled-Tuesday-Blitz-April-02-2024"]
[Site "Chess.com"]
[Date "2024.04.02"]
[Round "6"]
[White "MalyDominator"]
[Black "GiorgianBarbosa"]
[Result "1-0"]
[WhiteElo "2629"]
[BlackElo "2484"]
[TimeControl "180+1"]
[EndTime "9:04:17 PDT"]
[Termination "MalyDominator won by resignation"]

1. e4 {[%clk 0:03:00.9]} 1... c5 {[%clk 0:02:52.7]} 2. Nf3 {[%clk 0:02:48.6]}
2... g6 {[%clk 0:02:53.6]} 3. c4 {[%clk 0:02:48.4]} 3... Bg7 {[%clk 0:02:53.4]}
4. d4 {[%clk 0:02:49.2]} 4... Nc6 {[%clk 0:02:54.3]} 5. d5 {[%clk 0:02:46.4]}
5... Nd4 {[%clk 0:02:54.4]} 6. Nxd4 {[%clk 0:02:46]} 6... Bxd4 {[%clk 0:02:54]}
7. Bd3 {[%clk 0:02:45.8]} 7... d6 {[%clk 0:02:52.8]} 8. O-O {[%clk 0:02:46]}
8... Nf6 {[%clk 0:02:50.1]} 9. Nc3 {[%clk 0:02:45.7]} 9... O-O {[%clk 0:02:51]}
10. Ne2 {[%clk 0:02:44.9]} 10... Nd7 {[%clk 0:02:49.9]} 11. Nxd4 {[%clk
0:02:43.7]} 11... cxd4 {[%clk 0:02:50.8]} 12. Bh6 {[%clk 0:02:33.2]} 12... Re8
{[%clk 0:02:50.2]} 13. Rb1 {[%clk 0:02:33.8]} 13... e5 {[%clk 0:02:48.9]} 14.
dxe6 {[%clk 0:02:30.7]} 14... fxe6 {[%clk 0:02:49.8]} 15. Qd2 {[%clk 0:02:26.7]}
15... e5 {[%clk 0:02:49.6]} 16. b4 {[%clk 0:02:26.3]} 16... a5 {[%clk
0:02:42.2]} 17. a3 {[%clk 0:02:24.6]} 17... axb4 {[%clk 0:02:42.2]} 18. axb4
{[%clk 0:02:25.5]} 18... Nf6 {[%clk 0:02:38.5]} 19. Bg5 {[%clk 0:02:20.9]} 19...
Rf8 {[%clk 0:02:35.9]} 20. f4 {[%clk 0:02:20.2]} 20... Qe7 {[%clk 0:02:25.8]}
21. Qf2 {[%clk 0:01:54.7]} 21... Kg7 {[%clk 0:01:40.2]} 22. Qh4 {[%clk
0:01:53.6]} 22... Ra3 {[%clk 0:01:03.6]} 23. Rf3 {[%clk 0:01:51]} 1-0

[Event "Early-Titled-Tuesday-Blitz-April-02-2024"]
[Site "Chess.com"]
[Date "2024.04.02"]
[Round "6"]
[White "Boorchess"]
[Black "mertfelin"]
[Result "0-1"]
[WhiteElo "2524"]
[BlackElo "2286"]
[TimeControl "180+1"]
[EndTime "9:04:18 PDT"]
[Termination "mertfelin won by resignation"]

1. d4 {[%clk 0:03:00.9]} 1... d5 {[%clk 0:03:00]} 2. c4 {[%clk 0:03:00.9]} 2...
e6 {[%clk 0:03:00.7]} 3. Nf3 {[%clk 0:03:00.5]} 3... Nf6 {[%clk 0:03:00.9]} 4.
g3 {[%clk 0:03:00.7]} 4... Be7 {[%clk 0:03:01]} 5. Bg2 {[%clk 0:03:01]} 5... O-O
{[%clk 0:03:01.8]} 6. O-O {[%clk 0:03:01.2]} 6... dxc4 {[%clk 0:03:02.5]} 7. Ne5
{[%clk 0:03:00.2]} 7... Nd5 {[%clk 0:03:02.2]} 8. Nxc4 {[%clk 0:02:59]} 8... b5
{[%clk 0:03:02.8]} 9. Ne5 {[%clk 0:02:57.2]} 9... Bb7 {[%clk 0:03:03.2]} 10. a3
{[%clk 0:02:47.7]} 10... Nd7 {[%clk 0:02:58.9]} 11. Nxd7 {[%clk 0:02:37.4]}
11... Qxd7 {[%clk 0:02:58.4]} 12. Qd3 {[%clk 0:02:28.3]} 12... c5 {[%clk
0:02:46.8]} 13. dxc5 {[%clk 0:02:27]} 13... Bxc5 {[%clk 0:02:47.3]} 14. Nc3
{[%clk 0:02:23.7]} 14... Rfd8 {[%clk 0:02:45.9]} 15. Nxb5 {[%clk 0:02:03.4]}
15... Ba6 {[%clk 0:02:37.8]} 16. a4 {[%clk 0:02:03.3]} 16... Rab8 {[%clk
0:02:36.8]} 17. e4 {[%clk 0:01:48]} 17... Nb4 {[%clk 0:02:35.2]} 18. Qxd7 {[%clk
0:01:47.7]} 18... Rxd7 {[%clk 0:02:35.9]} 19. Bf4 {[%clk 0:01:47.4]} 19... Rbd8
{[%clk 0:02:35.4]} 20. Rac1 {[%clk 0:01:43.8]} 20... Nd3 {[%clk 0:02:33.7]} 21.
Rc3 {[%clk 0:01:31]} 21... Nxf4 {[%clk 0:02:32.3]} 22. gxf4 {[%clk 0:01:30.6]}
22... Bxb5 {[%clk 0:02:33.1]} 23. axb5 {[%clk 0:01:28.8]} 23... Bb6 {[%clk
0:02:28]} 24. Bf3 {[%clk 0:01:16.5]} 24... Rd2 {[%clk 0:02:25.1]} 25. b3 {[%clk
0:01:12.2]} 25... g6 {[%clk 0:02:20.9]} 26. f5 {[%clk 0:01:10.1]} 26... R8d3
{[%clk 0:02:07.7]} 27. Rc8+ {[%clk 0:00:57.4]} 27... Kg7 {[%clk 0:02:08]} 28.
fxe6 {[%clk 0:00:55.6]} 28... fxe6 {[%clk 0:02:03.4]} 29. Bg4 {[%clk 0:00:55.2]}
29... Rxb3 {[%clk 0:02:00.7]} 30. Bxe6 {[%clk 0:00:48.8]} 30... Rbb2 {[%clk
0:02:01.1]} 31. h4 {[%clk 0:00:44.8]} 31... Bxf2+ {[%clk 0:02:00.4]} 32. Kh1
{[%clk 0:00:43.2]} 32... Bxh4 {[%clk 0:02:01.1]} 33. Rf7+ {[%clk 0:00:32.1]}
33... Kh6 {[%clk 0:02:01.4]} 34. Rh8 {[%clk 0:00:30.8]} 34... Rb1+ {[%clk
0:01:58]} 0-1

[Event "Early-Titled-Tuesday-Blitz-April-02-2024"]
[Site "Chess.com"]
[Date "2024.04.02"]
[Round "6"]
[White "MarcoRiehle"]
[Black "JiaHaoxiang"]
[Result "0-1"]
[WhiteElo "2767"]
[BlackElo "2604"]
[TimeControl "180+1"]
[EndTime "9:04:24 PDT"]
[Termination "JiaHaoxiang won by resignation"]

1. e4 {[%clk 0:03:00.9]} 1... c5 {[%clk 0:02:58.5]} 2. a3 {[%clk 0:02:58.2]}
2... e6 {[%clk 0:02:55.7]} 3. b4 {[%clk 0:02:58.1]} 3... cxb4 {[%clk 0:02:41.9]}
4. axb4 {[%clk 0:02:59]} 4... Bxb4 {[%clk 0:02:42.1]} 5. Bb2 {[%clk 0:02:58.5]}
5... Nf6 {[%clk 0:02:42.3]} 6. e5 {[%clk 0:02:58.6]} 6... Nd5 {[%clk 0:02:42.4]}
7. c4 {[%clk 0:02:59]} 7... Nc7 {[%clk 0:02:40.1]} 8. Ra3 {[%clk 0:02:59.4]}
8... Bxa3 {[%clk 0:02:28.9]} 9. Bxa3 {[%clk 0:03:00.3]} 9... Nc6 {[%clk
0:02:28.6]} 10. Qg4 {[%clk 0:02:59.9]} 10... g6 {[%clk 0:02:11.6]} 11. Nf3
{[%clk 0:02:58.3]} 11... h5 {[%clk 0:02:10.4]} 12. Qf4 {[%clk 0:02:56.1]} 12...
Ne7 {[%clk 0:01:49.1]} 13. Nc3 {[%clk 0:02:53]} 13... Nf5 {[%clk 0:01:46.8]} 14.
Ne4 {[%clk 0:02:51.9]} 14... d6 {[%clk 0:01:29.7]} 15. exd6 {[%clk 0:02:50.1]}
15... Na6 {[%clk 0:01:26.2]} 16. Qe5 {[%clk 0:02:48.3]} 16... O-O {[%clk
0:01:21.6]} 17. Nf6+ {[%clk 0:02:46.7]} 17... Kh8 {[%clk 0:01:21.9]} 18. d7
{[%clk 0:02:10.8]} 18... Bxd7 {[%clk 0:01:15.9]} 19. Bxf8 {[%clk 0:02:09.5]}
19... Qxf8 {[%clk 0:01:15.7]} 20. Nxd7+ {[%clk 0:02:09.5]} 20... Qg7 {[%clk
0:01:16.1]} 21. Be2 {[%clk 0:02:00.2]} 21... Rd8 {[%clk 0:01:12.6]} 22. Nf6
{[%clk 0:01:56]} 22... Nb4 {[%clk 0:01:08.2]} 23. O-O {[%clk 0:01:54.1]} 23...
Nc6 {[%clk 0:01:08.3]} 24. Qa1 {[%clk 0:01:54]} 24... Ncd4 {[%clk 0:01:08]} 25.
Nxd4 {[%clk 0:01:46.5]} 25... Nxd4 {[%clk 0:01:08.1]} 26. Bd1 {[%clk 0:01:47.1]}
26... Qxf6 {[%clk 0:01:07.8]} 27. Qxa7 {[%clk 0:01:46.9]} 27... Rd7 {[%clk
0:00:55.1]} 28. h3 {[%clk 0:01:43.5]} 28... Kg7 {[%clk 0:00:55.1]} 29. Re1
{[%clk 0:01:39]} 29... Nc6 {[%clk 0:00:50.5]} 30. Bf3 {[%clk 0:01:35.6]} 30...
Nxa7 {[%clk 0:00:50.1]} 0-1